Name,Sub Group,Service Area,Expense Type,Narrative,Date,Transaction No,Amount,Supplier Name,Supplier ID,Period,Year
Allerdale Borough Council,BB03,Premises related expenditure,Corporate Property,Plumbing and Heating Maintenance,03/10/2012,469904,107.80,O'CONNELL & BEAN(MECH&ELEC)LTD,C00078,7,2012
Allerdale Borough Council,QC01,Capital Expenditure,Carnegie Redevelopment,External Contractor Payments,03/10/2012,469905,435.00,BINGHAM YATES & PARTNERS      ,A00003,7,2012
Allerdale Borough Council,QC01,Capital Expenditure,Keswick Museum Enhancement Project,External Contractor Payments,03/10/2012,469906,4333.33,VIDAR MEDIA GROUP LTD         ,A01019,7,2012
Allerdale Borough Council,AD01,Employee related expenditure,Finance and Accounting - Pay Groups,Agency Staff Costs,17/10/2012,469907,975.00,HAYS                          ,A00280,7,2012
Allerdale Borough Council,AD01,Employee related expenditure,ES - Public Convenience Cleaning,Agency Staff Costs,10/10/2012,469908,185.64,COCKERMOUTH TOWN COUNCIL      ,A00586,7,2012
Allerdale Borough Council,BB01,Premises related expenditure,Corporate Property,Internal Maintenance,03/10/2012,469909,24.52,EDMUNDSON ELECTRICAL LTD      ,A00304,7,2012
Allerdale Borough Council,DA02,Supplies and Services,Offstreet - Owned,Equipment Repair & Maintenance,24/10/2012,469910,210.00,METRIC GROUP LTD              ,A00568,7,2012
Allerdale Borough Council,DB03,Supplies and Services,Members Services,Catering Costs and consummables.,24/10/2012,469911,110.21,ZEPBROOK LTD                  ,A00072,7,2012
Allerdale Borough Council,DA03,Supplies and Services,ES - Public Convenience Cleaning,Purchase of Materials,03/10/2012,469913,19.56,W F CLEANING SERVICES LTD     ,C00013,7,2012
Allerdale Borough Council,DA03,Supplies and Services,ES - Public Convenience Cleaning,Purchase of Materials,03/10/2012,469914,74.98,W F CLEANING SERVICES LTD     ,C00013,7,2012
Allerdale Borough Council,BA01,Premises related expenditure,Corporate Property,External Maintenance & Decoration,03/10/2012,469915,50.00,SOLWAY INDUSTRIAL DOORS LTD   ,C00015,7,2012
Allerdale Borough Council,BA01,Premises related expenditure,Corporate Property,External Maintenance & Decoration,03/10/2012,469916,25.00,FIRTH FABRICATION SERVICES    ,C00020,7,2012
Allerdale Borough Council,BA01,Premises related expenditure,Corporate Property,External Maintenance & Decoration,03/10/2012,469917,110.00,UNBLOCK CUMBRIA LTD           ,C00005,7,2012
Allerdale Borough Council,AD01,Employee related expenditure,Finance and Accounting - Pay Groups,Agency Staff Costs,17/10/2012,469918,975.00,HAYS                          ,A00280,7,2012
Allerdale Borough Council,ID99,Income,Credit Union,Other Fees,03/10/2012,469921,224.75,THE ALLERDALE CREDIT UNION    ,A00493,7,2012
Allerdale Borough Council,DM99,Supplies and Services,Senior Management/PA - Pay Groups,General,          ,469922,77.31,BARCLAYCARD COMMERCIAL        ,X00207,7,2012
Allerdale Borough Council,DE03,Supplies and Services,Revenue,Court and Tribunal Costs,03/10/2012,469923,621.00,HMCS                          ,A00275,7,2012
Allerdale Borough Council,DF01,Supplies and Services,Directorate,Postage,03/10/2012,469924,2685.77,ROYAL MAIL LETTERS            ,X00021,7,2012
Allerdale Borough Council,DI03,Supplies and Services,Members Services,"Courses, Training, Seminars",24/10/2012,469925,117.00,MAGGIES BAKERY                ,A01685,7,2012
Allerdale Borough Council,BA01,Premises related expenditure,Corporate Property,External Maintenance & Decoration,24/10/2012,469926,500.73,JOHN ELLIOTT LTD                 ,C00023,7,2012
Allerdale Borough Council,DE01,Supplies and Services,Homelessness,Consultants Fees,03/10/2012,469927,25.98,JAMES STREET GROUP PRACTICE   ,A00462,7,2012
Allerdale Borough Council,DK99,Supplies and Services,Communications and Marketing,Promotions General,24/10/2012,469928,220.00,GIRAFFE DESIGN,C00115,7,2012
Allerdale Borough Council,DE13,Supplies and Services,Leisure - Carnegie Theatre,Subcontractors - General,03/10/2012,469929,49.50,R W AUDIO                     ,C00059,7,2012
Allerdale Borough Council,BA01,Premises related expenditure,Corporate Property,External Maintenance & Decoration,03/10/2012,469930,28.00,Redacted information - included personal information ,C00008,7,2012
Allerdale Borough Council,BA01,Premises related expenditure,Corporate Property,External Maintenance & Decoration,03/10/2012,469931,120.00,Redacted information - included personal information ,C00008,7,2012
Allerdale Borough Council,BD01,Premises related expenditure,Corporate Property,Energy Management Charges,17/10/2012,469932,1829.50,SCHNEIDER ELECTRIC LTD        ,A00859,7,2012
Allerdale Borough Council,DE06,Supplies and Services,Building Control,Professional Services,03/10/2012,469933,682.50,BINGHAM YATES & PARTNERS      ,A00003,7,2012
Allerdale Borough Council,DH12,Supplies and Services,Shared IT,Software Development,17/10/2012,469934,78.31,PHOENIX SOFTWARE LTD          ,A00229,7,2012
Allerdale Borough Council,AD01,Employee related expenditure,ES - Public Convenience Cleaning,Agency Staff Costs,03/10/2012,469935,159.12,COCKERMOUTH TOWN COUNCIL      ,A00586,7,2012
Allerdale Borough Council,DE14,Supplies and Services,Mayor's Fund,Public Entertaiment,17/10/2012,469936,871.04,THOMAS FATTORINI LTD          ,A01125,7,2012
Allerdale Borough Council,DM99,Supplies and Services,Mayors Charity,General,03/10/2012,469937,65.00,FIRPRESS PRINTERS             ,A00063,7,2012
Allerdale Borough Council,BD03,Premises related expenditure,Corporate Property,Gas,          ,469938,2991.62,CORONA ENERGY ,X00003,7,2012
Allerdale Borough Council,BD02,Premises related expenditure,Corporate Property,Electricity,03/10/2012,469939,41.20,NPOWER              ,X00015,7,2012
Allerdale Borough Council,BD02,Premises related expenditure,Property - Tenanted Properties NOT Wigton Props,Electricity,03/10/2012,469940,32.06,BRITISH GAS         ,X00006,7,2012
Allerdale Borough Council,BD02,Premises related expenditure,Corporate Property,Electricity,03/10/2012,469941,30.65,BRITISH GAS        ,X00006,7,2012
Allerdale Borough Council,DH10,Supplies and Services,Shared IT,Software Licences,03/10/2012,469942,324.00,EBUSINESS IMPLEMENTATION SERV ,A01316,7,2012
Allerdale Borough Council,EA15,Third Party Payments,Leisure - Museums,Voluntary Organisations,03/10/2012,469943,7500.00,WORKINGTON HERITAGE GROUP LTD ,A00339,7,2012
Allerdale Borough Council,DG03,Supplies and Services,Leisure - Carnegie Theatre,Call Charges,03/10/2012,469944,31.37,BRITISH TELECOM - TVTE        ,X00004,7,2012
Allerdale Borough Council,DG03,Supplies and Services,Leisure - Carnegie Theatre,Call Charges,03/10/2012,469945,27.78,BRITISH TELECOM - TVTE        ,X00004,7,2012
Allerdale Borough Council,BD03,Premises related expenditure,Corporate Property,Gas,03/10/2012,469946,14.48,BRITISH GAS         ,X00006,7,2012
Allerdale Borough Council,QC01,Capital Expenditure,Keswick Museum Enhancement Project,External Contractor Payments,03/10/2012,469947,665.00,BOX CLEVER STORAGE            ,A00880,7,2012
Allerdale Borough Council,BA01,Premises related expenditure,Corporate Property,External Maintenance & Decoration,03/10/2012,469948,641.72,STOBBARTS LTD                 ,C00002,7,2012
Allerdale Borough Council,DE99,Supplies and Services,Finance and Accounting - Pay Groups,Other Fees,03/10/2012,469949,320.00,CUMBRIA CC - GENERAL A/C      ,A00066,7,2012
Allerdale Borough Council,DE06,Supplies and Services,Legal Services - Pay Groups,Professional Services,17/10/2012,469950,600.00,KINGS CHAMBER SOLICITORS      ,A00348,7,2012
Allerdale Borough Council,DB02,Supplies and Services,Leisure - Carnegie Theatre,Bar Provision,          ,469951,43.46,BOOKER CASH AND CARRY         ,A01419,7,2012
Allerdale Borough Council,EA04,Third Party Payments,Recycling,Horticulture,03/10/2012,469952,431.49,FCC RECYCLING (UK) LTD (ALCO) ,A00185,7,2012
Allerdale Borough Council,QE02,Capital Expenditure,IT Infrastructure,Purchase of Fixed Plant & Equipment,24/10/2012,469953,1700.00,NETCENTRIX LIMITED            ,A00106,7,2012
Allerdale Borough Council,DA03,Supplies and Services,Parking Services - Pay Groups,Purchase of Materials,24/10/2012,469954,191.00,LIBERTY SERVICES              ,A01478,7,2012
Allerdale Borough Council,DH10,Supplies and Services,Shared IT,Software Licences,24/10/2012,469955,1555.00,CRANFIELD UNIVERSITY          ,A01644,7,2012
Allerdale Borough Council,EB05,Third Party Payments,Leisure - Sports & Leisure Centres,Leisure Centres,03/10/2012,469956,47829.67,CARLISLE LEISURE LTD          ,A00136,7,2012
Allerdale Borough Council,EB06,Third Party Payments,Maryport Wave,The Wave,03/10/2012,469957,15918.00,CARLISLE LEISURE LTD          ,A00136,7,2012
Allerdale Borough Council,DK01,Supplies and Services,Planning and Development ,Statutory Notices,03/10/2012,469958,934.40,CUMBRIA CC - 3C STUDIO ONLY   ,A00070,7,2012
Allerdale Borough Council,DE05,Supplies and Services,Planning and Development ,Licences,03/10/2012,469959,101.50,CENTREMAPS                    ,A00512,7,2012
Allerdale Borough Council,DE15,Supplies and Services,Leisure - Museums,Conservation & Display,03/10/2012,469960,992.00,BOX CLEVER STORAGE            ,A00880,7,2012
Allerdale Borough Council,DD04,Supplies and Services,Legal Services - Pay Groups,Reference Materials (includes online charges),24/10/2012,469961,221.00,SWEET & MAXWELL GROUP LTD     ,A00028,7,2012
Allerdale Borough Council,DE01,Supplies and Services,Environmental Protection,Consultants Fees,24/10/2012,469962,927.20,UNITED UTILITIES PLC          ,A01657,7,2012
Allerdale Borough Council,DE01,Supplies and Services,Homelessness,Consultants Fees,03/10/2012,469963,50.00,MARYPORT HEALTH SERVICES      ,A00421,7,2012
Allerdale Borough Council,DD04,Supplies and Services,Building Control,Reference Materials (includes online charges),24/10/2012,469964,255.45,LEXISNEXIS                    ,A00356,7,2012
Allerdale Borough Council,AD01,Employee related expenditure,Finance and Accounting - Pay Groups,Agency Staff Costs,24/10/2012,469965,975.00,HAYS                          ,A00280,7,2012
Allerdale Borough Council,DI03,Supplies and Services,Members Services,"Courses, Training, Seminars",03/10/2012,469966,190.00,HOEY AINSCOUGH ASSOCIATES LTD ,A01683,7,2012
Allerdale Borough Council,CA05,Transport related expenditure,Asset Management - Pay Groups,"Fuel, Lubricants & Consummables",          ,469967,53.24,BP OIL UK LTD                 ,X00022,7,2012
Allerdale Borough Council,CA05,Transport related expenditure,ES - Parks and Grounds Maintenance,"Fuel, Lubricants & Consummables",          ,469968,47.15,BP OIL UK LTD                 ,X00022,7,2012
Allerdale Borough Council,DH03,Supplies and Services,Shared IT,Hardware Purchase,24/10/2012,469969,323.41,MISCO                         ,A00125,7,2012
Allerdale Borough Council,CA04,Transport related expenditure,Trade Waste,Repairs & Maintenance ,10/10/2012,469970,126.66,HI-Q TYRESERVICES             ,A00313,7,2012
Allerdale Borough Council,CA04,Transport related expenditure,ES - Street Cleansing,Repairs & Maintenance ,10/10/2012,469971,9.40,HI-Q TYRESERVICES             ,A00313,7,2012
Allerdale Borough Council,BC07,Premises related expenditure,ES - Public Convenience Cleaning,Fixtures and Fittings,24/10/2012,469973,63.92,PHS GROUP LTD                 ,C00028,7,2012
Allerdale Borough Council,DB03,Supplies and Services,Shared IT,Catering Costs and consummables.,03/10/2012,469974,190.00,ST MICHAELS CHURCH WORKINGTON ,A00255,7,2012
Allerdale Borough Council,BA01,Premises related expenditure,Corporate Property,External Maintenance & Decoration,03/10/2012,469975,24.00,Redacted information - included personal information ,C00008,7,2012
Allerdale Borough Council,AF01,Employee related expenditure,Organisational Improvement Plan,External Courses & Seminar Fees,24/10/2012,469976,1200.00,LEACH CONSULTING & ASSOCIATES ,A01444,7,2012
Allerdale Borough Council,CA99,Transport related expenditure,Gates Travel,General,24/10/2012,469977,650.00,GATES TRAVEL                  ,A01525,7,2012
Allerdale Borough Council,BA01,Premises related expenditure,Car Parks - Inspection and Maintenance,External Maintenance & Decoration,03/10/2012,469978,900.00,BORDER ROAD MARKINGS LTD      ,C00064,7,2012
Allerdale Borough Council,DA01,Supplies and Services,ES - Street Cleansing,Equipment Costs,24/10/2012,469979,495.00,BROXAP LIMITED                ,C00048,7,2012
Allerdale Borough Council,EA99,Third Party Payments,Street & Footway Maintenance,General,10/10/2012,469980,260.00,Redacted information - included personal information ,A00242,7,2012
Allerdale Borough Council,BC07,Premises related expenditure,ES - Public Convenience Cleaning,Fixtures and Fittings,24/10/2012,469981,63.92,PHS GROUP LTD                 ,C00028,7,2012
Allerdale Borough Council,BC07,Premises related expenditure,ES - Public Convenience Cleaning,Fixtures and Fittings,24/10/2012,469982,275.18,PHS GROUP LTD                 ,C00028,7,2012
Allerdale Borough Council,BC07,Premises related expenditure,ES - Public Convenience Cleaning,Fixtures and Fittings,24/10/2012,469983,96.10,PHS GROUP LTD                 ,C00028,7,2012
Allerdale Borough Council,BC01,Premises related expenditure,Corporate Property,Security,03/10/2012,469984,241.50,G4S SECURE SOLUTIONS          ,A01597,7,2012
Allerdale Borough Council,DE06,Supplies and Services,Animal Welfare,Professional Services,10/10/2012,469985,3191.00,WHINMILL FARM CANINE CENTRE   ,A00117,7,2012
Allerdale Borough Council,BA03,Premises related expenditure,Parks Development,Grounds,03/10/2012,469986,1868.00,ISS WATERERS LANDSCAPE        ,C00044,7,2012
Allerdale Borough Council,DE02,Supplies and Services,Legal Services - Pay Groups,Land Registry Fees,          ,469987,48.00,HM LAND REGISTRY-DIRECT DEBIT ,A00505,7,2012
Allerdale Borough Council,QC01,Capital Expenditure,Keswick Museum Enhancement Project,External Contractor Payments,03/10/2012,469989,30.41,Redacted information - included personal information ,M01794,7,2012
Allerdale Borough Council,DE14,Supplies and Services,Leisure - Carnegie Theatre,Public Entertaiment,17/10/2012,469992,3391.50,WADAMS                        ,A01476,7,2012
Allerdale Borough Council,DE03,Supplies and Services,Legal Services - Pay Groups,Court and Tribunal Costs,03/10/2012,469993,280.00,HMCTS - ACCT PAID BY BACS     ,A01237,7,2012
Allerdale Borough Council,XC03,Holding and Control Accounts,Returnable Deposits on Commercial Property,Refundable Deposits,10/10/2012,469994,260.00,W F CLEANING SERVICES LTD     ,C00013,7,2012
Allerdale Borough Council,AF01,Employee related expenditure,Environmental Health - Pay Groups,External Courses & Seminar Fees,          ,469997,165.00,HSBC CARD SERVICES            ,X00000,7,2012
Allerdale Borough Council,CA05,Transport related expenditure,Asset Management - Pay Groups,"Fuel, Lubricants & Consummables",          ,469998,53.24,BP OIL UK LTD                 ,X00022,7,2012
Allerdale Borough Council,DA01,Supplies and Services,Food and Occupational Health,Equipment Costs,24/10/2012,469999,44.62,ARCO LIMITED                  ,A00045,7,2012
Allerdale Borough Council,DA01,Supplies and Services,Health and Safety,Equipment Costs,17/10/2012,470000,59.69,POSTURITE (UK) LTD            ,A00336,7,2012
Allerdale Borough Council,DH08,Supplies and Services,Shared IT,Computer Consumables,24/10/2012,470001,207.29,MISCO                         ,A00125,7,2012
Allerdale Borough Council,DH08,Supplies and Services,Shared IT,Computer Consumables,24/10/2012,470002,69.95,MISCO                         ,A00125,7,2012
Allerdale Borough Council,DD03,Supplies and Services,Organisation Development Team Pay Group,Publications and Periodicals,10/10/2012,470003,38.80,P & D NEWSAGENTS              ,A00237,7,2012
Allerdale Borough Council,DE08,Supplies and Services,Mayor's Fund,Subscriptions,10/10/2012,470004,7.20,P & D NEWSAGENTS              ,A00237,7,2012
Allerdale Borough Council,DC03,Supplies and Services,Food and Occupational Health,Laundry,10/10/2012,470010,170.44,SUNLIGHT SERVICE GROUP        ,A00027,7,2012
Allerdale Borough Council,QC01,Capital Expenditure,Derwentside Renewal Works,External Contractor Payments,24/10/2012,470011,42.00,K BAILIFF & SON LTD           ,A01617,7,2012
Allerdale Borough Council,DC01,Supplies and Services,ES - Public Convenience Cleaning,Uniforms,24/10/2012,470012,156.20,ARCO LIMITED                  ,A00045,7,2012
Allerdale Borough Council,DA01,Supplies and Services,Housing Services - Pay Groups,Equipment Costs,24/10/2012,470013,80.00,MERLIN LAZER LTD              ,A00557,7,2012
Allerdale Borough Council,DE06,Supplies and Services,Property - Operational Buildings 2,Professional Services,24/10/2012,470015,360.00,ENERGY TEAM                   ,A00352,7,2012
Allerdale Borough Council,DB02,Supplies and Services,Leisure - Carnegie Theatre,Bar Provision,10/10/2012,470016,131.81,CITROSOFT DRINKS LIMITED      ,A00005,7,2012
Allerdale Borough Council,DE06,Supplies and Services,Legal Services - Pay Groups,Professional Services,10/10/2012,470017,1117.46,CUMBRIA LAW CENTRE            ,A01446,7,2012
Allerdale Borough Council,AF01,Employee related expenditure,Environmental Health - Pay Groups,External Courses & Seminar Fees,24/10/2012,470018,900.00,MARTIN CRANFIELD ASSOCIATES LTD,A01666,7,2012
Allerdale Borough Council,DH99,Supplies and Services,Shared IT,Computer Costs - General,24/10/2012,470019,1345.00,CAPITA BUSINESS SERVICES LTD  ,A01264,7,2012
Allerdale Borough Council,AF01,Employee related expenditure,Town Centre Manager,External Courses & Seminar Fees,24/10/2012,470020,50.00,ASSOC TOWN CENTRE MANAGEMENT  ,A01088,7,2012
Allerdale Borough Council,EA04,Third Party Payments,Recycling,Horticulture,10/10/2012,470021,156.00,THOMPSONS PLANT HIRE LTD      ,A00262,7,2012
Allerdale Borough Council,EA04,Third Party Payments,Recycling,Horticulture,10/10/2012,470022,1087.20,THOMPSONS PLANT HIRE LTD      ,A00262,7,2012
Allerdale Borough Council,EA04,Third Party Payments,Recycling,Horticulture,10/10/2012,470023,1677.60,THOMPSONS PLANT HIRE LTD      ,A00262,7,2012
Allerdale Borough Council,EA04,Third Party Payments,Recycling,Horticulture,10/10/2012,470024,2524.50,THOMPSONS PLANT HIRE LTD      ,A00262,7,2012
Allerdale Borough Council,EA04,Third Party Payments,Recycling,Horticulture,10/10/2012,470025,42.00,THOMPSONS PLANT HIRE LTD      ,A00262,7,2012
Allerdale Borough Council,EA04,Third Party Payments,Recycling,Horticulture,10/10/2012,470026,544.80,THOMPSONS PLANT HIRE LTD      ,A00262,7,2012
Allerdale Borough Council,EA04,Third Party Payments,Recycling,Horticulture,10/10/2012,470027,2180.00,THOMPSONS PLANT HIRE LTD      ,A00262,7,2012
Allerdale Borough Council,EA04,Third Party Payments,Recycling,Horticulture,10/10/2012,470028,975.00,THOMPSONS PLANT HIRE LTD      ,A00262,7,2012
Allerdale Borough Council,CA05,Transport related expenditure,ES - Street Cleansing,"Fuel, Lubricants & Consummables",          ,470029,45.74,BP OIL UK LTD                 ,X00022,7,2012
Allerdale Borough Council,DE01,Supplies and Services,Corporate Improvement,Consultants Fees,          ,470030,1500.00,CUMBRIA DISABILITY NETWORK    ,A01633,7,2012
Allerdale Borough Council,XC02,Holding and Control Accounts,Capital Project Retentions,Holding Accounts General - Expenditure,10/10/2012,470031,14826.10,THOMAS ARMSTRONG - CONST      ,C00003,7,2012
Allerdale Borough Council,DM99,Supplies and Services,Senior Management/PA - Pay Groups,General,10/10/2012,470032,7.20,P & D NEWSAGENTS              ,A00237,7,2012
Allerdale Borough Council,DD03,Supplies and Services,Environmental Services - Pay Groups,Publications and Periodicals,10/10/2012,470033,14.80,P & D NEWSAGENTS              ,A00237,7,2012
Allerdale Borough Council,BC03,Premises related expenditure,Corporate Property,Cleaning - windows,10/10/2012,470034,7.74,J A LEE WINDOW & GENERAL CLEAN,A00051,7,2012
Allerdale Borough Council,DE01,Supplies and Services,Environmental Protection,Consultants Fees,24/10/2012,470035,3907.13,AMEC ENVIRON&INFRASTRUCTURE UK,A01589,7,2012
Allerdale Borough Council,BA01,Premises related expenditure,Corporate Property,External Maintenance & Decoration,10/10/2012,470036,260.00,THOMAS ARMSTRONG - CONST      ,C00003,7,2012
Allerdale Borough Council,EA04,Third Party Payments,Recycling,Horticulture,10/10/2012,470037,4198.00,THOMPSONS PLANT HIRE LTD      ,A00262,7,2012
Allerdale Borough Council,EA04,Third Party Payments,Recycling,Horticulture,10/10/2012,470038,1847.20,THOMPSONS PLANT HIRE LTD      ,A00262,7,2012
Allerdale Borough Council,EA04,Third Party Payments,Recycling,Horticulture,10/10/2012,470039,2995.20,THOMPSONS PLANT HIRE LTD      ,A00262,7,2012
Allerdale Borough Council,EA04,Third Party Payments,Recycling,Horticulture,10/10/2012,470040,3933.00,THOMPSONS PLANT HIRE LTD      ,A00262,7,2012
Allerdale Borough Council,EA04,Third Party Payments,Recycling,Horticulture,10/10/2012,470041,1949.60,THOMPSONS PLANT HIRE LTD      ,A00262,7,2012
Allerdale Borough Council,EA04,Third Party Payments,Recycling,Horticulture,10/10/2012,470042,3574.50,THOMPSONS PLANT HIRE LTD      ,A00262,7,2012
Allerdale Borough Council,BB02,Premises related expenditure,Corporate Property,Electrical Repairs and Service,10/10/2012,470043,96.00,J & J ELECTRICAL (CUMBRIA) LTD,C00038,7,2012
Allerdale Borough Council,BB02,Premises related expenditure,Corporate Property,Electrical Repairs and Service,10/10/2012,470044,250.70,J & J ELECTRICAL (CUMBRIA) LTD,C00038,7,2012
Allerdale Borough Council,BB02,Premises related expenditure,Corporate Property,Electrical Repairs and Service,10/10/2012,470045,66.50,J & J ELECTRICAL (CUMBRIA) LTD,C00038,7,2012
Allerdale Borough Council,BB02,Premises related expenditure,Corporate Property,Electrical Repairs and Service,10/10/2012,470046,48.00,J & J ELECTRICAL (CUMBRIA) LTD,C00038,7,2012
Allerdale Borough Council,BC05,Premises related expenditure,Corporate Property,Inspections and Services,10/10/2012,470047,130.40,J & J ELECTRICAL (CUMBRIA) LTD,C00038,7,2012
Allerdale Borough Council,BB02,Premises related expenditure,Corporate Property,Electrical Repairs and Service,10/10/2012,470048,132.60,J & J ELECTRICAL (CUMBRIA) LTD,C00038,7,2012
Allerdale Borough Council,BB02,Premises related expenditure,Corporate Property,Electrical Repairs and Service,10/10/2012,470049,48.00,J & J ELECTRICAL (CUMBRIA) LTD,C00038,7,2012
Allerdale Borough Council,DB02,Supplies and Services,Leisure - Carnegie Theatre,Bar Provision,10/10/2012,470050,758.44,CLASSIC DRINKS                ,A00413,7,2012
Allerdale Borough Council,DE06,Supplies and Services,Human Resources - Pay Groups,Professional Services,10/10/2012,470051,300.00,BURNETTS SOLICITORS           ,A00129,7,2012
Allerdale Borough Council,DA01,Supplies and Services,Homelessness,Equipment Costs,24/10/2012,470052,45.79,ARCO LIMITED                  ,A01448,7,2012
Allerdale Borough Council,DA01,Supplies and Services,Leisure - Carnegie Theatre,Equipment Costs,10/10/2012,470053,290.65,ARMSTRONGS - LINDEN/KAYTOOLS  ,A00091,7,2012
Allerdale Borough Council,BB03,Premises related expenditure,Corporate Property,Plumbing and Heating Maintenance,10/10/2012,470054,95.00,O'CONNELL & BEAN(MECH&ELEC)LTD,C00078,7,2012
Allerdale Borough Council,DE01,Supplies and Services,Human Resources - Pay Groups,Consultants Fees,10/10/2012,470055,153.90,BURNETTS SOLICITORS           ,A00129,7,2012
Allerdale Borough Council,DB03,Supplies and Services,Leisure - Arts Development,Catering Costs and consummables.,10/10/2012,470056,55.00,KIRKGATE ARTS                 ,A01090,7,2012
Allerdale Borough Council,BC01,Premises related expenditure,Corporate Property,Security,10/10/2012,470057,52.96,BRITISH TELECOM - TVTE        ,X00004,7,2012
Allerdale Borough Council,BD08,Premises related expenditure,Corporate Property,Water & Sewage,10/10/2012,470059,3199.08,UNITED UTILITIES,X00011,7,2012
Allerdale Borough Council,BC07,Premises related expenditure,ES - Public Convenience Cleaning,Fixtures and Fittings,24/10/2012,470060,51.14,PHS GROUP LTD                 ,C00028,7,2012
Allerdale Borough Council,DE99,Supplies and Services,Out of Hours Telephones,Other Fees,24/10/2012,470061,3.95,SITEXORBIS LIMITED            ,A00679,7,2012
Allerdale Borough Council,DE99,Supplies and Services,Out of Hours Telephones,Other Fees,24/10/2012,470062,578.75,SITEXORBIS LIMITED            ,A00679,7,2012
Allerdale Borough Council,DE07,Supplies and Services,Land Charges Service,Searches,10/10/2012,470063,960.00,CUMBRIA CC       ,A00066,7,2012
Allerdale Borough Council,BD08,Premises related expenditure,Corporate Property,Water & Sewage,10/10/2012,470064,39.60,UNITED UTILITIES,X00011,7,2012
Allerdale Borough Council,BD08,Premises related expenditure,Corporate Property,Water & Sewage,10/10/2012,470065,114.45,UNITED UTILITIES,X00011,7,2012
Allerdale Borough Council,DG04,Supplies and Services,Shared IT,Mobile Phones,10/10/2012,470066,600.00,NORTECH RADIO TELEPHONES LTD  ,A00574,7,2012
Allerdale Borough Council,BB01,Premises related expenditure,Corporate Property,Internal Maintenance,10/10/2012,470067,1631.60,Redacted information - included personal information ,C00008,7,2012
Allerdale Borough Council,BD08,Premises related expenditure,Corporate Property,Water & Sewage,10/10/2012,470068,398.09,UNITED UTILITIES,X00011,7,2012
Allerdale Borough Council,BD08,Premises related expenditure,Corporate Property,Water & Sewage,10/10/2012,470069,13.19,UNITED UTILITIES,X00011,7,2012
Allerdale Borough Council,BC01,Premises related expenditure,Corporate Property,Security,24/10/2012,470070,127.25,MASTIFF ELECTRICAL SYSTEMS LTD,A00021,7,2012
Allerdale Borough Council,DD01,Supplies and Services,Benefits,General stationery,24/10/2012,470071,838.33,REPROWORLD                    ,A01686,7,2012
Allerdale Borough Council,CA01,Transport related expenditure,Homelessness,Vehicle Leasing,24/10/2012,470072,156.21,ARVAL LTD                     ,A00545,7,2012
Allerdale Borough Council,DD01,Supplies and Services,Document Management - Pay Groups,General stationery,24/10/2012,470073,97.67,LYRECO                        ,A00043,7,2012
Allerdale Borough Council,DD01,Supplies and Services,Document Management - Pay Groups,General stationery,24/10/2012,470074,16.03,LYRECO                        ,A00043,7,2012
Allerdale Borough Council,EA04,Third Party Payments,Recycling,Horticulture,10/10/2012,470075,2656.10,FCC RECYCLING (UK) LTD (ALCO) ,A00185,7,2012
Allerdale Borough Council,DD01,Supplies and Services,Document Management - Pay Groups,General stationery,24/10/2012,470076,124.13,LYRECO                        ,A00043,7,2012
Allerdale Borough Council,DE13,Supplies and Services,Leisure - Carnegie Theatre,Subcontractors - General,10/10/2012,470077,321.75,R W AUDIO                     ,C00059,7,2012
Allerdale Borough Council,DF02,Supplies and Services,Electoral Registration,Business Reply Licences,10/10/2012,470078,531.57,ROYAL MAIL LETTERS            ,X00021,7,2012
Allerdale Borough Council,DH04,Supplies and Services,Shared IT,Computer Data Lines B.T.,10/10/2012,470079,167.62,BRITISH TELECOM - TVTE        ,X00004,7,2012
Allerdale Borough Council,DG02,Supplies and Services,Crime Prevention,Line Rentals,10/10/2012,470080,600.00,BRITISH TELECOM - TVTE        ,X00004,7,2012
Allerdale Borough Council,QC01,Capital Expenditure,Capital - Housing Slum Clearance Areas,External Contractor Payments,17/10/2012,470081,350.00,WEST COAST SURVEYS LTD        ,A00154,7,2012
Allerdale Borough Council,DA01,Supplies and Services,Offstreet - Owned,Equipment Costs,24/10/2012,470082,298.19,COBALT TELEPHONE TECHNOLOGIES ,A01008,7,2012
Allerdale Borough Council,DA03,Supplies and Services,Animal Welfare,Purchase of Materials,10/10/2012,470083,56.70,GALEMIRE VETERINARY HOSPITAL  ,A00328,7,2012
Allerdale Borough Council,DD01,Supplies and Services,Licensing Service,General stationery,10/10/2012,470084,874.80,FIRPRESS PRINTERS             ,A00063,7,2012
Allerdale Borough Council,BD02,Premises related expenditure,Street & Footway Maintenance,Electricity,10/10/2012,470085,7223.19,EDF ENERGY,X00019,7,2012
Allerdale Borough Council,BD02,Premises related expenditure,Car Parks - Inspection and Maintenance,Electricity,10/10/2012,470086,143.59,EDF ENERGY,X00019,7,2012
Allerdale Borough Council,DD01,Supplies and Services,Document Management - Pay Groups,General stationery,24/10/2012,470087,118.09,LYRECO                        ,A00043,7,2012
Allerdale Borough Council,DD01,Supplies and Services,Planning and Development ,General stationery,24/10/2012,470088,176.50,GENUS                         ,A01484,7,2012
Allerdale Borough Council,DK99,Supplies and Services,Leisure - Carnegie Theatre,Promotions General,24/10/2012,470089,297.83,ASTSIGNS LIMITED              ,A01473,7,2012
Allerdale Borough Council,XC02,Holding and Control Accounts,Allerdale House Tea Fund,Holding Accounts General - Expenditure,31/10/2012,470090,91.20,TELK LTD                      ,A01670,7,2012
Allerdale Borough Council,DF03,Supplies and Services,Document Management - Pay Groups,Franking Machine Costs other,24/10/2012,470091,300.00,FP EXECUTIVE AGENCY LTD       ,A00733,7,2012
Allerdale Borough Council,DI03,Supplies and Services,Members Services,"Courses, Training, Seminars",31/10/2012,470092,85.00,I&DEA                         ,A00484,7,2012
Allerdale Borough Council,DA01,Supplies and Services,Homelessness,Equipment Costs,31/10/2012,470093,29.59,ARCO LIMITED                  ,A01448,7,2012
Allerdale Borough Council,CA04,Transport related expenditure,Domestic Waste,Repairs & Maintenance ,17/10/2012,470094,84.44,HI-Q TYRESERVICES             ,A00313,7,2012
Allerdale Borough Council,DM99,Supplies and Services,Homelessness,General,10/10/2012,470096,75.00,BR PROPERTIES                 ,M00868,7,2012
Allerdale Borough Council,QF05,Capital Expenditure,Housing Act 1989 - Facilities for Disabled,To Private Individuals,10/10/2012,470097,3200.00,TOP NOTCH CONTRACTORS LTD     ,X00165,7,2012
Allerdale Borough Council,ID99,Income,Credit Union,Other Fees,10/10/2012,470099,287.85,THE ALLERDALE CREDIT UNION    ,A00493,7,2012
Allerdale Borough Council,DE03,Supplies and Services,Legal Services - Pay Groups,Court and Tribunal Costs,10/10/2012,470100,70.00,HMCTS - ACCT PAID BY BACS     ,A01237,7,2012
Allerdale Borough Council,DK99,Supplies and Services,Communications and Marketing,Promotions General,10/10/2012,470102,250.00,CUMBRIAN NEWSPAPERS LIMITED   ,A00869,7,2012
Allerdale Borough Council,XC02,Holding and Control Accounts,Capital Project Retentions,Holding Accounts General - Expenditure,10/10/2012,470103,7034.66,THOMAS ARMSTRONG - CONST      ,C00003,7,2012
Allerdale Borough Council,DE99,Supplies and Services,Insurances,Other Fees,10/10/2012,470104,5000.00,AON UK LTD,A01698,7,2012
Allerdale Borough Council,DE02,Supplies and Services,Legal Services - Pay Groups,Land Registry Fees,          ,470105,54.00,HM LAND REGISTRY-DIRECT DEBIT ,A00505,7,2012
Allerdale Borough Council,QC01,Capital Expenditure,Keswick Museum Enhancement Project,External Contractor Payments,24/10/2012,470106,4709.00,Redacted information - included personal information ,A01697,7,2012
Allerdale Borough Council,BC03,Premises related expenditure,Corporate Property,Cleaning - windows,17/10/2012,470107,234.85,J A LEE WINDOW & GENERAL CLEAN,A00051,7,2012
Allerdale Borough Council,DE01,Supplies and Services,ES - Street Cleansing,Consultants Fees,17/10/2012,470108,50.00,MICHAEL DOUGLAS AUTO SALVAGE  ,A00078,7,2012
Allerdale Borough Council,AD01,Employee related expenditure,Environmental Services - Pay Groups,Agency Staff Costs,17/10/2012,470110,66.00,Redacted information - included personal information ,A00176,7,2012
Allerdale Borough Council,AD01,Employee related expenditure,Environmental Services - Pay Groups,Agency Staff Costs,17/10/2012,470111,414.00,Redacted information - included personal information ,A00176,7,2012
Allerdale Borough Council,BA01,Premises related expenditure,Corporate Property,External Maintenance & Decoration,17/10/2012,470112,260.00,THOMAS ARMSTRONG - CONST      ,C00003,7,2012
Allerdale Borough Council,DH11,Supplies and Services,Shared IT,Software Maintenance,17/10/2012,470113,500.00,IIZUKA SOFTWARE TECHNOLOGY LTD,A01354,7,2012
Allerdale Borough Council,DH11,Supplies and Services,Shared IT,Software Maintenance,24/10/2012,470114,1338.28,MIDLAND SOFTWARE LTD          ,A00296,7,2012
Allerdale Borough Council,DE01,Supplies and Services,Food and Occupational Health,Consultants Fees,31/10/2012,470115,143.80,HEALTH PROTECTION AGENCY      ,A01082,7,2012
Allerdale Borough Council,DM99,Supplies and Services,Members Services,General,31/10/2012,470116,202.50,ADSO                          ,A01129,7,2012
Allerdale Borough Council,DH04,Supplies and Services,Shared IT,Computer Data Lines B.T.,17/10/2012,470117,11816.25,CABLE & WIRELESS              ,A00934,7,2012
Allerdale Borough Council,DE99,Supplies and Services,Licensing Service,Other Fees,          ,470118,176.00,CRIMINAL RECORDS BUR-D DEBIT  ,X00041,7,2012
Allerdale Borough Council,DC01,Supplies and Services,Recycling,Uniforms,17/10/2012,470119,39.69,ARCO LIMITED                  ,A00045,7,2012
Allerdale Borough Council,DI03,Supplies and Services,Members Services,"Courses, Training, Seminars",17/10/2012,470120,113.46,ENTERPRISE RENT A CAR         ,A01367,7,2012
Allerdale Borough Council,DG02,Supplies and Services,Shared IT,Line Rentals,24/10/2012,470121,52.50,SITEXORBIS LIMITED            ,A00679,7,2012
Allerdale Borough Council,DH04,Supplies and Services,Shared IT,Computer Data Lines B.T.,24/10/2012,470122,79.85,CABLE & WIRELESS              ,A00934,7,2012
Allerdale Borough Council,DG03,Supplies and Services,Shared IT,Call Charges,24/10/2012,470123,1349.86,CABLE & WIRELESS              ,A00934,7,2012
Allerdale Borough Council,DH04,Supplies and Services,Shared IT,Computer Data Lines B.T.,24/10/2012,470124,31.85,CABLE & WIRELESS              ,A00934,7,2012
Allerdale Borough Council,DK02,Supplies and Services,Arts Engagement Project,Regeneration Initiatives,24/10/2012,470125,400.00,HOWGILL FAMILY CENTRE         ,A01579,7,2012
Allerdale Borough Council,EA01,Third Party Payments,ES - Public Convenience Cleaning,Cleansing,17/10/2012,470126,200.00,J STRONG & SON                ,A00209,7,2012
Allerdale Borough Council,BD05,Premises related expenditure,Customer Contact Centre - Pay Groups,Rentals and Lease Charges,24/10/2012,470127,427.50,SOLWAY PLAIN FUTURES LTD      ,A01194,7,2012
Allerdale Borough Council,BD05,Premises related expenditure,Parking Services - Pay Groups,Rentals and Lease Charges,24/10/2012,470128,282.00,SOLWAY PLAIN FUTURES LTD      ,A01194,7,2012
Allerdale Borough Council,DE01,Supplies and Services,Food and Occupational Health,Consultants Fees,17/10/2012,470129,100.00,GALEMIRE VETERINARY HOSPITAL  ,A00328,7,2012
Allerdale Borough Council,DA03,Supplies and Services,ES - Public Convenience Cleaning,Purchase of Materials,17/10/2012,470130,161.50,THOMAS ARMSTRONG - CONST      ,C00003,7,2012
Allerdale Borough Council,BD02,Premises related expenditure,Crime Prevention,Electricity,17/10/2012,470131,103.94,EON      ,X00016,7,2012
Allerdale Borough Council,AD01,Employee related expenditure,Finance and Accounting - Pay Groups,Agency Staff Costs,31/10/2012,470132,975.00,HAYS                          ,A00280,7,2012
Allerdale Borough Council,DG02,Supplies and Services,Workington TIC,Line Rentals,17/10/2012,470133,30.26,BRITISH TELECOM - TVTE        ,X00004,7,2012
Allerdale Borough Council,DH13,Supplies and Services,Finance and Accounting - Pay Groups,Software Miscellaneous ,17/10/2012,470134,2505.00,REAL ASSET MANAGEMENT PLC     ,A01042,7,2012
Allerdale Borough Council,AD01,Employee related expenditure,Environmental Health - Pay Groups,Agency Staff Costs,31/10/2012,470135,295.60,Redacted information - included personal information ,A00206,7,2012
Allerdale Borough Council,DE99,Supplies and Services,Recycling,Other Fees,17/10/2012,470136,1374.85,SCOTTS HAULAGE                ,A00266,7,2012
Allerdale Borough Council,QC01,Capital Expenditure,Keswick Museum Enhancement Project,External Contractor Payments,24/10/2012,470137,5304.00,MOSEDALE GILLATT              ,A01020,7,2012
Allerdale Borough Council,EA99,Third Party Payments,Parking Services - Multi-storey,General,24/10/2012,470138,37889.17,PARKSAFE                      ,A00647,7,2012
Allerdale Borough Council,CA04,Transport related expenditure,Domestic Waste,Repairs & Maintenance ,17/10/2012,470139,150.00,MARYPORT CAR CENTRE           ,A00510,7,2012
Allerdale Borough Council,DE07,Supplies and Services,Land Charges Service,Searches,31/10/2012,470140,2425.20,CUMBRIA COUNTY COUNCIL        ,A00920,7,2012
Allerdale Borough Council,DG03,Supplies and Services,Shared IT,Call Charges,17/10/2012,470141,545.19,CABLE & WIRELESS              ,A00934,7,2012
Allerdale Borough Council,QE02,Capital Expenditure,IT Infrastructure,Purchase of Fixed Plant & Equipment,24/10/2012,470142,400.00,MODERN MINDSET LTD            ,A01269,7,2012
Allerdale Borough Council,QE02,Capital Expenditure,IT Infrastructure,Purchase of Fixed Plant & Equipment,24/10/2012,470145,11749.11,PHOENIX SOFTWARE LTD          ,A00229,7,2012
Allerdale Borough Council,DH04,Supplies and Services,Shared IT,Computer Data Lines B.T.,24/10/2012,470146,22.95,CABLE & WIRELESS              ,A00934,7,2012
Allerdale Borough Council,DH04,Supplies and Services,Shared IT,Computer Data Lines B.T.,24/10/2012,470147,67.90,CABLE & WIRELESS              ,A00934,7,2012
Allerdale Borough Council,DG03,Supplies and Services,Shared IT,Call Charges,24/10/2012,470148,18.49,CABLE & WIRELESS              ,A00934,7,2012
Allerdale Borough Council,XC02,Holding and Control Accounts,Busy Bees Childcare Scheme,Holding Accounts General - Expenditure,17/10/2012,470149,1512.00,COMPUTERSHARE VOUCHER SERVICES,A00991,7,2012
Allerdale Borough Council,BD08,Premises related expenditure,Corporate Property,Water & Sewage,17/10/2012,470150,629.07,UNITED UTILITIES ,X00011,7,2012
Allerdale Borough Council,DE01,Supplies and Services,ES - Street Cleansing,Consultants Fees,17/10/2012,470151,31.14,BRITISH TELECOM - TVTE        ,X00004,7,2012
Allerdale Borough Council,BD08,Premises related expenditure,Corporate Property,Water & Sewage,17/10/2012,470152,1416.38,UNITED UTILITIES,X00011,7,2012
Allerdale Borough Council,DA02,Supplies and Services,AONB Silloth,Equipment Repair & Maintenance,17/10/2012,470154,81.54,Redacted information - included personal information ,A00759,7,2012
Allerdale Borough Council,DG02,Supplies and Services,Shared IT,Line Rentals,17/10/2012,470155,24.99,MANX TELECOM LTD              ,A01265,7,2012
Allerdale Borough Council,DG02,Supplies and Services,Shared IT,Line Rentals,17/10/2012,470156,14.46,MANX TELECOM LTD              ,A01265,7,2012
Allerdale Borough Council,DH11,Supplies and Services,Shared IT,Software Maintenance,31/10/2012,470157,2404.64,HALAROSE LIMITED              ,A00012,7,2012
Allerdale Borough Council,BA01,Premises related expenditure,Corporate Property,External Maintenance & Decoration,17/10/2012,470158,110.00,UNBLOCK CUMBRIA LTD           ,C00005,7,2012
Allerdale Borough Council,DA03,Supplies and Services,ES - Public Convenience Cleaning,Purchase of Materials,17/10/2012,470159,131.18,INSTOCK (CHANDLERS)           ,A00050,7,2012
Allerdale Borough Council,DE07,Supplies and Services,Benefits,Searches,17/10/2012,470160,65.35,TAMESIDE METROPOLITAN BOROUGH ,A00231,7,2012
Allerdale Borough Council,DE06,Supplies and Services,Property - Operational Buildings 2,Professional Services,24/10/2012,470161,2729.73,CIPFA BUSINESS LIMITED        ,A01653,7,2012
Allerdale Borough Council,DE07,Supplies and Services,Benefits,Searches,17/10/2012,470162,54.25,TAMESIDE METROPOLITAN BOROUGH ,A00231,7,2012
Allerdale Borough Council,DH05,Supplies and Services,Shared IT,Computer Network,31/10/2012,470163,14825.00,QUANTIX                       ,A00195,7,2012
Allerdale Borough Council,DH08,Supplies and Services,Shared IT,Computer Consumables,          ,470164,393.95,COOLSPIRIT LTD                ,A01085,7,2012
Allerdale Borough Council,DH02,Supplies and Services,Shared IT,Hardware Maintenance,          ,470165,8148.20,NETCENTRIX LIMITED            ,A00106,7,2012
Allerdale Borough Council,EA04,Third Party Payments,Recycling,Horticulture,17/10/2012,470166,2337.60,THOMPSONS PLANT HIRE LTD      ,A00262,7,2012
Allerdale Borough Council,EA04,Third Party Payments,Recycling,Horticulture,17/10/2012,470167,2077.00,THOMPSONS PLANT HIRE LTD      ,A00262,7,2012
Allerdale Borough Council,EA04,Third Party Payments,Recycling,Horticulture,17/10/2012,470168,36.00,THOMPSONS PLANT HIRE LTD      ,A00262,7,2012
Allerdale Borough Council,DA02,Supplies and Services,Shared IT,Equipment Repair & Maintenance,24/10/2012,470169,0.50,RICOH UK LTD                  ,A00037,7,2012
Allerdale Borough Council,DA02,Supplies and Services,Shared IT,Equipment Repair & Maintenance,24/10/2012,470170,3.31,RICOH UK LTD                  ,A00037,7,2012
Allerdale Borough Council,XC02,Holding and Control Accounts,Busy Bees Childcare Scheme,Holding Accounts General - Expenditure,17/10/2012,470171,83.16,COMPUTERSHARE VOUCHER SERVICES,A00991,7,2012
Allerdale Borough Council,DE01,Supplies and Services,Senior Management/PA - Pay Groups,Consultants Fees,17/10/2012,470172,2000.00,BADENOCH & CLARK              ,A01355,7,2012
Allerdale Borough Council,AB02,Employee related expenditure,Corporate Recruitment,Medical Screening,17/10/2012,470173,1560.00,AXA ICAS WELLBEING            ,A00360,7,2012
Allerdale Borough Council,DH02,Supplies and Services,Shared IT,Hardware Maintenance,31/10/2012,470174,12320.00,QUANTIX                       ,A00195,7,2012
Allerdale Borough Council,DE01,Supplies and Services,Food and Occupational Health,Consultants Fees,17/10/2012,470175,107.76,Redacted information - included personal information ,A00978,7,2012
Allerdale Borough Council,DD01,Supplies and Services,Building Control,General stationery,17/10/2012,470176,350.16,INTEGRITY OFFICE LTD          ,A00726,7,2012
Allerdale Borough Council,DE02,Supplies and Services,Legal Services - Pay Groups,Land Registry Fees,          ,470177,13.00,HM LAND REGISTRY-DIRECT DEBIT ,A00505,7,2012
Allerdale Borough Council,DE02,Supplies and Services,Legal Services - Pay Groups,Land Registry Fees,          ,470178,60.00,HM LAND REGISTRY-DIRECT DEBIT ,A00505,7,2012
Allerdale Borough Council,DE03,Supplies and Services,Legal Services - Pay Groups,Court and Tribunal Costs,17/10/2012,470179,30.00,HMCTS    ,A01237,7,2012
Allerdale Borough Council,ID10,Income,Land Charges Service,Search & Enquiry Fees General,17/10/2012,470180,90.00,CARTMELL SHEPHERD             ,M00177,7,2012
Allerdale Borough Council,DF03,Supplies and Services,Document Management - Pay Groups,Franking Machine Costs other,17/10/2012,470181,10000.00,FP TELESET                    ,A00428,7,2012
Allerdale Borough Council,QF05,Capital Expenditure,Housing Act 1989 - Facilities for Disabled,To Private Individuals,17/10/2012,470182,388.24,Redacted information - included personal information ,M01797,7,2012
Allerdale Borough Council,QF05,Capital Expenditure,Housing Act 1989 - Facilities for Disabled,To Private Individuals,17/10/2012,470183,440.41,Redacted information - included personal information ,M01797,7,2012
Allerdale Borough Council,BD08,Premises related expenditure,Homelessness,Water & Sewage,17/10/2012,470184,90.52,UNITED UTILITIES,X00011,7,2012
Allerdale Borough Council,DG03,Supplies and Services,Shared IT,Call Charges,17/10/2012,470186,361.14,BRITISH TELECOM - TVTE        ,X00004,7,2012
Allerdale Borough Council,EA04,Third Party Payments,Recycling,Horticulture,17/10/2012,470187,138.00,THOMPSONS PLANT HIRE LTD      ,A00262,7,2012
Allerdale Borough Council,DH08,Supplies and Services,Shared IT,Computer Consumables,          ,470188,2714.00,COOLSPIRIT LTD                ,A01085,7,2012
Allerdale Borough Council,QE02,Capital Expenditure,IT Infrastructure,Purchase of Fixed Plant & Equipment,24/10/2012,470189,800.00,INTRINSIC TECHNOLOGY LTD      ,A00902,7,2012
Allerdale Borough Council,DE06,Supplies and Services,Legal Services - Pay Groups,Professional Services,24/10/2012,470190,2385.45,EVERSHEDS LLP                 ,A01516,7,2012
Allerdale Borough Council,DH04,Supplies and Services,Shared IT,Computer Data Lines B.T.,17/10/2012,470191,88.21,CABLE & WIRELESS              ,A00934,7,2012
Allerdale Borough Council,DF01,Supplies and Services,Revenue,Postage,17/10/2012,470192,792.57,ROYAL MAIL LETTERS            ,X00021,7,2012
Allerdale Borough Council,DA01,Supplies and Services,Benefits,Equipment Costs,24/10/2012,470193,168.00,CANFORD AUDIO PLC             ,A00570,7,2012
Allerdale Borough Council,BA01,Premises related expenditure,Corporate Property,External Maintenance & Decoration,24/10/2012,470194,846.00,ASHCROFT PLANT (CUMBRIA) LTD  ,C00018,7,2012
Allerdale Borough Council,BA01,Premises related expenditure,Car Parks - Inspection and Maintenance,External Maintenance & Decoration,17/10/2012,470195,240.00,UNBLOCK CUMBRIA LTD           ,C00005,7,2012
Allerdale Borough Council,QC01,Capital Expenditure,Capital - Housing Slum Clearance Areas,External Contractor Payments,31/10/2012,470196,1155.00,LLOYD BORE LTD                ,A01112,7,2012
Allerdale Borough Council,BC05,Premises related expenditure,Corporate Property,Inspections and Services,24/10/2012,470197,1583.00,J & J ELECTRICAL (CUMBRIA) LTD,C00038,7,2012
Allerdale Borough Council,BD09,Premises related expenditure,Property - Tenanted Properties NOT Wigton Props,Buildings and Contents Insurance,17/10/2012,470198,87.37,HARVEST HOUSING GROUP LTD     ,A00729,7,2012
Allerdale Borough Council,BD09,Premises related expenditure,Property - Tenanted Properties NOT Wigton Props,Buildings and Contents Insurance,17/10/2012,470199,87.37,HARVEST HOUSING GROUP LTD     ,A00729,7,2012
Allerdale Borough Council,BD09,Premises related expenditure,Property - Tenanted Properties NOT Wigton Props,Buildings and Contents Insurance,17/10/2012,470200,174.74,HARVEST HOUSING GROUP LTD     ,A00729,7,2012
Allerdale Borough Council,BD09,Premises related expenditure,Property - Tenanted Properties NOT Wigton Props,Buildings and Contents Insurance,17/10/2012,470201,87.37,HARVEST HOUSING GROUP LTD     ,A00729,7,2012
Allerdale Borough Council,QC01,Capital Expenditure,Cemetery Wall Repairs,External Contractor Payments,24/10/2012,470202,575.00,BINGHAM YATES & PARTNERS      ,A00003,7,2012
Allerdale Borough Council,BD02,Premises related expenditure,Leisure - Carnegie Theatre,Electricity,17/10/2012,470205,14.92,SOLWAY HEATERS LTD            ,A00305,7,2012
Allerdale Borough Council,DA03,Supplies and Services,AONB Silloth,Purchase of Materials,          ,470206,152.01,ARCO LIMITED                  ,A00045,7,2012
Allerdale Borough Council,DK99,Supplies and Services,Legal Services - Pay Groups,Promotions General,17/10/2012,470207,663.20,CUMBRIA CC      ,A00066,7,2012
Allerdale Borough Council,CA05,Transport related expenditure,Domestic Waste,"Fuel, Lubricants & Consummables",          ,470208,46.72,BP OIL UK LTD                 ,X00022,7,2012
Allerdale Borough Council,CA05,Transport related expenditure,ES - Public Convenience Cleaning,"Fuel, Lubricants & Consummables",          ,470209,208.31,BP OIL UK LTD                 ,X00022,7,2012
Allerdale Borough Council,CA05,Transport related expenditure,ES - Public Convenience Cleaning,"Fuel, Lubricants & Consummables",          ,470210,111.55,BP OIL UK LTD                 ,X00022,7,2012
Allerdale Borough Council,BD02,Premises related expenditure,Car Parks - Inspection and Maintenance,Electricity,17/10/2012,470211,464.57,EDF ENERGY ,X00019,7,2012
Allerdale Borough Council,BD03,Premises related expenditure,Corporate Property,Gas,17/10/2012,470212,105.12,BRITISH GAS        ,X00006,7,2012
Allerdale Borough Council,BD03,Premises related expenditure,Corporate Property,Gas,17/10/2012,470213,104.14,BRITISH GAS        ,X00006,7,2012
Allerdale Borough Council,BD03,Premises related expenditure,Corporate Property,Gas,17/10/2012,470214,36.80,BRITISH GAS        ,X00006,7,2012
Allerdale Borough Council,BD03,Premises related expenditure,Corporate Property,Gas,17/10/2012,470215,16.91,BRITISH GAS        ,X00006,7,2012
Allerdale Borough Council,BD08,Premises related expenditure,Corporate Property,Water & Sewage,17/10/2012,470216,40.98,UNITED UTILITIES ,X00011,7,2012
Allerdale Borough Council,BD02,Premises related expenditure,Corporate Property,Electricity,17/10/2012,470217,3092.33,NPOWER             ,X00015,7,2012
Allerdale Borough Council,DH04,Supplies and Services,Shared IT,Computer Data Lines B.T.,17/10/2012,470218,3330.58,BRITISH TELECOM - TVTE        ,X00004,7,2012
Allerdale Borough Council,BD08,Premises related expenditure,Corporate Property,Water & Sewage,17/10/2012,470219,806.63,UNITED UTILITIES,X00011,7,2012
Allerdale Borough Council,DA03,Supplies and Services,ES - Public Convenience Cleaning,Purchase of Materials,24/10/2012,470221,702.00,INSTOCK (CHANDLERS)           ,A00050,7,2012
Allerdale Borough Council,BB01,Premises related expenditure,Corporate Property,Internal Maintenance,17/10/2012,470222,1073.00,Redacted information - included personal information ,C00008,7,2012
Allerdale Borough Council,BB01,Premises related expenditure,Corporate Property,Internal Maintenance,17/10/2012,470223,665.00,Redacted information - included personal information ,C00008,7,2012
Allerdale Borough Council,DK99,Supplies and Services,Legal Services - Pay Groups,Promotions General,17/10/2012,470224,331.60,CUMBRIA CC - 3C STUDIO ONLY   ,A00070,7,2012
Allerdale Borough Council,DK99,Supplies and Services,Legal Services - Pay Groups,Promotions General,17/10/2012,470225,331.60,CUMBRIA CC - 3C STUDIO ONLY   ,A00070,7,2012
Allerdale Borough Council,DK99,Supplies and Services,Legal Services - Pay Groups,Promotions General,17/10/2012,470226,327.60,CUMBRIA CC - 3C STUDIO ONLY   ,A00070,7,2012
Allerdale Borough Council,DG03,Supplies and Services,Shared IT,Call Charges,24/10/2012,470227,619.57,CABLE & WIRELESS              ,A00934,7,2012
Allerdale Borough Council,BA03,Premises related expenditure,Coastal Protection and Inland Flooding,Grounds,24/10/2012,470228,315.00,FIRTH FABRICATION SERVICES    ,C00020,7,2012
Allerdale Borough Council,EB02,Third Party Payments,ES - Street Cleansing,Street Cleansing,17/10/2012,470243,93701.83,FCC ENVIRONMENT SERV (FOCSA)  ,A00085,7,2012
Allerdale Borough Council,DK99,Supplies and Services, ,Promotions General,24/10/2012,470244,400.00,WASHINGTON CENTRAL HOTEL      ,A00153,7,2012
Allerdale Borough Council,DH10,Supplies and Services,Shared IT,Software Licences,17/10/2012,470245,3086.00,TECHNIFORCE LIMITED           ,A01418,7,2012
Allerdale Borough Council,BB01,Premises related expenditure,Corporate Property,Internal Maintenance,24/10/2012,470246,250.00,MAGPIE SERVICE,A00261,7,2012
Allerdale Borough Council,BC02,Premises related expenditure,Corporate Property,Cleaning,17/10/2012,470247,18.20,GD MACBETH AND SON            ,A00221,7,2012
Allerdale Borough Council,DA01,Supplies and Services,Leisure - Carnegie Theatre,Equipment Costs,17/10/2012,470248,79.20,GD MACBETH AND SON            ,A00221,7,2012
Allerdale Borough Council,DA01,Supplies and Services,Leisure - Carnegie Theatre,Equipment Costs,17/10/2012,470249,83.15,GD MACBETH AND SON            ,A00221,7,2012
Allerdale Borough Council,DA01,Supplies and Services,Leisure - Carnegie Theatre,Equipment Costs,17/10/2012,470250,8.80,GD MACBETH AND SON            ,A00221,7,2012
Allerdale Borough Council,BC06,Premises related expenditure,Corporate Property,Legionella Inspections and Services,31/10/2012,470252,28.13,RENTOKIL INITIAL UK LTD       ,A00500,7,2012
Allerdale Borough Council,BC06,Premises related expenditure,Corporate Property,Legionella Inspections and Services,31/10/2012,470253,337.50,RENTOKIL INITIAL UK LTD       ,A00500,7,2012
Allerdale Borough Council,BA01,Premises related expenditure,Corporate Property,External Maintenance & Decoration,24/10/2012,470254,468.20,SOLWAY INDUSTRIAL DOORS LTD   ,C00015,7,2012
Allerdale Borough Council,DH99,Supplies and Services,Shared IT,Computer Costs - General,          ,470255,1345.00,CAPITA BUSINESS SERVICES LTD  ,A01264,7,2012
Allerdale Borough Council,DD03,Supplies and Services,Senior Management/PA - Pay Groups,Publications and Periodicals,31/10/2012,470256,203.00,SOLACE ENTERPRISES            ,A00126,7,2012
Allerdale Borough Council,DH02,Supplies and Services,Shared IT,Hardware Maintenance,          ,470257,1927.00,NETCENTRIX LIMITED            ,A00106,7,2012
Allerdale Borough Council,QF05,Capital Expenditure,Housing Act 1989 - Facilities for Disabled,To Private Individuals,17/10/2012,470258,2714.53,G H CHAMBERS & SON            ,C00030,7,2012
Allerdale Borough Council,QF05,Capital Expenditure,Housing Act 1989 - Facilities for Disabled,To Private Individuals,17/10/2012,470259,8400.00,K BAILIFF & SON LIMITED       ,X00116,7,2012
Allerdale Borough Council,QF05,Capital Expenditure,Housing Act 1989 - Facilities for Disabled,To Private Individuals,17/10/2012,470260,6000.00,K BAILIFF & SON LIMITED       ,X00116,7,2012
Allerdale Borough Council,QF05,Capital Expenditure,Housing Act 1989 - Facilities for Disabled,To Private Individuals,17/10/2012,470261,600.00,G H CHAMBERS & SON            ,C00030,7,2012
Allerdale Borough Council,QF05,Capital Expenditure,Housing Act 1989 - Facilities for Disabled,To Private Individuals,17/10/2012,470262,594.00,WHINBARROW DESIGN SERVICES LTD,A00311,7,2012
Allerdale Borough Council,QF05,Capital Expenditure,Housing Act 1989 - Facilities for Disabled,To Private Individuals,17/10/2012,470263,3180.00,DAY CUMMINS LIMITED           ,A00131,7,2012
Allerdale Borough Council,QF05,Capital Expenditure,Housing Act 1989 - Facilities for Disabled,To Private Individuals,17/10/2012,470264,4142.30,WW BUILDERS LTD               ,M00306,7,2012
Allerdale Borough Council,QF05,Capital Expenditure,Housing Act 1989 - Facilities for Disabled,To Private Individuals,17/10/2012,470265,20770.93,TOP NOTCH CONTRACTORS LTD     ,X00165,7,2012
Allerdale Borough Council,DE99,Supplies and Services,Leisure - Arts Development,Other Fees,17/10/2012,470266,1000.00,SOUNDWAVE                     ,A00998,7,2012
Allerdale Borough Council,DE03,Supplies and Services,Legal Services - Pay Groups,Court and Tribunal Costs,17/10/2012,470267,140.00,HMCTS     ,A01237,7,2012
Allerdale Borough Council,DM99,Supplies and Services,Insurances,General,17/10/2012,470270,6721.80,WORKINGTON AFC LTD            ,M00219,7,2012
Allerdale Borough Council,CA01,Transport related expenditure,Mayoral Services,Vehicle Leasing,24/10/2012,470271,91.00,EILBECK MOTORS LIMITED        ,A01161,7,2012
Allerdale Borough Council,DE05,Supplies and Services,Planning and Development ,Licences,24/10/2012,470272,87.00,CENTREMAPS                    ,A00512,7,2012
Allerdale Borough Council,DA03,Supplies and Services,Parking Services - Pay Groups,Purchase of Materials,          ,470273,495.00,LIBERTY SERVICES              ,A01478,7,2012
Allerdale Borough Council,DE05,Supplies and Services,Emergency Planning,Licences,          ,470274,891.00,ULTRA ELECTRONICS LIMITED     ,A01346,7,2012
Allerdale Borough Council,DM99,Supplies and Services,Enterprise Coaches,General,          ,470275,122.44,CARTRIDGE WORLD,A01687,7,2012
Allerdale Borough Council,AD01,Employee related expenditure,Environmental Services - Pay Groups,Agency Staff Costs,24/10/2012,470276,769.64,W F CLEANING SERVICES LTD     ,C00013,7,2012
Allerdale Borough Council,BB01,Premises related expenditure,Homelessness,Internal Maintenance,24/10/2012,470277,33.66,TRAVIS PERKINS                ,A00742,7,2012
Allerdale Borough Council,BB01,Premises related expenditure,Homelessness,Internal Maintenance,24/10/2012,470278,33.66,TRAVIS PERKINS                ,A00742,7,2012
Allerdale Borough Council,DF01,Supplies and Services,Environmental Services - Pay Groups,Postage,24/10/2012,470279,200.00,ROYAL MAIL LETTERS            ,X00021,7,2012
Allerdale Borough Council,DE06,Supplies and Services,Planning and Development ,Professional Services,31/10/2012,470280,956.25,KINGS CHAMBER SOLICITORS      ,A00348,7,2012
Allerdale Borough Council,DH04,Supplies and Services,Shared IT,Computer Data Lines B.T.,31/10/2012,470281,36.98,THUS PLC/DEMON                ,A00598,7,2012
Allerdale Borough Council,DK01,Supplies and Services,Planning and Development ,Statutory Notices,24/10/2012,470282,1925.60,CUMBRIA CC - 3C STUDIO ONLY   ,A00070,7,2012
Allerdale Borough Council,DK01,Supplies and Services,Planning and Development ,Statutory Notices,24/10/2012,470283,860.80,CUMBRIA CC - 3C STUDIO ONLY   ,A00070,7,2012
Allerdale Borough Council,DK01,Supplies and Services,Planning and Development ,Statutory Notices,24/10/2012,470284,742.40,CUMBRIA CC - 3C STUDIO ONLY   ,A00070,7,2012
Allerdale Borough Council,CA04,Transport related expenditure,ES - Public Convenience Cleaning,Repairs & Maintenance ,24/10/2012,470286,343.70,FCC ENVIRONMENT SERV (FOCSA)  ,A00085,7,2012
Allerdale Borough Council,EA04,Third Party Payments,Recycling,Horticulture,24/10/2012,470287,441.75,FCC RECYCLING (UK) LTD (ALCO) ,A00185,7,2012
Allerdale Borough Council,DH04,Supplies and Services,Shared IT,Computer Data Lines B.T.,24/10/2012,470288,36.98,THUS PLC/DEMON                ,A00598,7,2012
Allerdale Borough Council,DH04,Supplies and Services,Shared IT,Computer Data Lines B.T.,24/10/2012,470289,36.98,THUS PLC/DEMON                ,A00598,7,2012
Allerdale Borough Council,DE99,Supplies and Services,Finance and Accounting - Pay Groups,Other Fees,24/10/2012,470290,37.92,DUN & BRADSTREET LTD,A01699,7,2012
Allerdale Borough Council,EA04,Third Party Payments,Recycling,Horticulture,24/10/2012,470291,1650.40,THOMPSONS PLANT HIRE LTD      ,A00262,7,2012
Allerdale Borough Council,EA04,Third Party Payments,Recycling,Horticulture,24/10/2012,470292,624.50,THOMPSONS PLANT HIRE LTD      ,A00262,7,2012
Allerdale Borough Council,EA04,Third Party Payments,Recycling,Horticulture,24/10/2012,470293,94.00,THOMPSONS PLANT HIRE LTD      ,A00262,7,2012
Allerdale Borough Council,DA02,Supplies and Services,Offstreet - Owned,Equipment Repair & Maintenance,24/10/2012,470294,15177.51,METRIC GROUP LTD              ,A00568,7,2012
Allerdale Borough Council,AB02,Employee related expenditure,Corporate Recruitment,Medical Screening,          ,470296,36.78,WELLWORK LTD                  ,A00029,7,2012
Allerdale Borough Council,DE09,Supplies and Services,Electoral Registration,Election Costs,24/10/2012,470298,605.99,INLAND REVENUE                ,A00475,7,2012
Allerdale Borough Council,DB02,Supplies and Services,Leisure - Carnegie Theatre,Bar Provision,          ,470299,147.98,BOOKER CASH AND CARRY         ,A01419,7,2012
Allerdale Borough Council,CA05,Transport related expenditure,Asset Management - Pay Groups,"Fuel, Lubricants & Consummables",          ,470336,47.39,BP OIL UK LTD                 ,X00022,7,2012
Allerdale Borough Council,BC02,Premises related expenditure,Leisure - Carnegie Theatre,Cleaning,24/10/2012,470337,130.20,CATERITE FOOD & WINE SERVICE  ,A00210,7,2012
Allerdale Borough Council,BC02,Premises related expenditure,Leisure - Carnegie Theatre,Cleaning,24/10/2012,470338,17.84,CATERITE FOOD & WINE SERVICE  ,A00210,7,2012
Allerdale Borough Council,XF03,Holding and Control Accounts,Payroll Suspense Account,PAYROLL OCTOBER 12 Travel & Subsistence  ,,462862,18092.00,INLAND REVENUE - DIRECT,X00038,7,2012
